bitfinex-derivatives/quotes_SOLF0:USTF0_20250212
["timestamp","ask_amount","ask_price","bid_price","bid_amount"]
[1739325341600,137.18459955,197.94,197.88,8.85147171]
[1739325341901,137.18459955,197.94,197.93,8.85147171]
[1739325343202,137.18459955,197.94,197.92,0.03694071]
[1739325344096,0.03476764,197.95,197.92,0.03694071]
[1739325344803,5.053,197.93,197.92,0.03694071]
[1739325345801,0.03476764,197.95,197.92,0.03694071]
[1739325347608,5.053,197.93,197.92,0.03694071]
[1739325347903,8.85147171,197.93,197.85,8.85147171]
[1739325348098,8.85147171,197.91,197.85,8.85147171]
[1739325348494,8.85147171,197.93,197.85,8.85147171]
[1739325348906,5.054,197.9,197.85,8.85147171]
[1739325349109,5.054,197.9,197.87,0.03647216]
[1739325352207,13.94093049,197.91,197.87,0.03647216]
[1739325352406,8.88743049,197.91,197.87,0.03647216]
[1739325352605,8.85147171,197.89,197.87,0.03647216]
[1739325353503,8.85147171,197.89,197.81,67.55353449]
[1739325353703,8.85147171,197.87,197.81,67.55353449]
[1739325354109,5.0548,197.86,197.81,67.55353449]
[1739325354309,5.0548,197.86,197.82,5.0557]
[1739325354809,5.0551,197.85,197.82,5.09299744]
[1739325355310,5.0551,197.85,197.82,0.03729744]
[1739325356107,0.03742148,197.86,197.82,0.03729744]
[1739325356411,5.0554,197.84,197.82,0.03729744]
[1739325356711,8.85147171,197.85,197.82,0.03729744]
[1739325356912,5.0556,197.83,197.82,0.03729744]
[1739325357411,13.90707171,197.83,197.82,0.03729744]
[1739325357610,8.85147171,197.83,197.75,8.85147171]
[1739325357813,5.0567,197.79,197.75,8.85147171]
[1739325358204,5.0564,197.8,197.75,8.85147171]
[1739325359012,0.0334642,197.79,197.76,0.03746493]
[1739325359913,5.0900642,197.79,197.76,0.03746493]
[1739325360113,0.0334642,197.79,197.76,0.03746493]
[1739325361111,5.0569,197.78,197.76,0.03746493]
[1739325361714,5.0900642,197.79,197.76,0.03746493]
[1739325362014,0.0334642,197.79,197.76,0.03746493]
[1739325362711,5.0901642,197.79,197.76,0.03746493]
[1739325363514,5.0569,197.78,197.76,0.03746493]
[1739325364918,5.0901642,197.79,197.76,0.03746493]
[1739325365314,0.0334642,197.79,197.76,0.03746493]
[1739325365514,0.0334642,197.79,197.77,13.90837171]
[1739325365718,0.0334642,197.79,197.77,8.85147171]
[1739325369356,0.0334642,197.79,197.77,13.90847171]
[1739325369625,0.0334642,197.79,197.77,8.85147171]
[1739325369826,5.0901642,197.79,197.77,8.85147171]
[1739325370428,5.0571,197.77,197.76,0.03746493]
[1739325370829,0.0334642,197.79,197.76,0.03746493]
[1739325371629,5.0569,197.78,197.76,0.03746493]
[1739325372530,0.0334642,197.79,197.76,0.03746493]
[1739325372729,5.0571,197.77,197.76,0.03746493]
[1739325374929,5.0569,197.78,197.76,0.03746493]
[1739325375228,0.0334642,197.79,197.76,0.03746493]
[1739325376322,8.85147171,197.77,197.71,8.85147171]
[1739325376524,8.85147171,197.75,197.69,8.85147171]
[1739325376833,5.0578,197.75,197.71,8.85147171]
[1739325377331,5.0578,197.75,197.73,8.85147171]
[1739325377531,5.09513085,197.75,197.73,8.85147171]
[1739325379230,0.03733085,197.75,197.73,8.85147171]
[1739325380635,0.03733085,197.75,197.74,5.0579]
[1739325381937,0.03733085,197.75,197.73,13.90957171]
[1739325382136,0.03733085,197.75,197.73,8.85147171]
[1739325382832,0.03733085,197.75,197.71,8.88779741]
[1739325383539,5.0579,197.74,197.71,8.88779741]
[1739325384636,0.03733085,197.75,197.71,8.88779741]
[1739325384934,5.0581,197.73,197.71,8.88779741]
[1739325385939,5.0584,197.72,197.71,0.0363257]
[1739325386338,8.88880256,197.75,197.71,0.0363257]
[1739325387139,5.0584,197.72,197.71,0.0363257]
[1739325387742,8.88880256,197.75,197.71,0.0363257]
[1739325387938,5.0582,197.73,197.71,0.0363257]
[1739325388441,0.03733085,197.75,197.71,8.88779741]
[1739325388741,0.03733085,197.75,197.73,8.85147171]
[1739325389537,0.03733085,197.75,197.74,5.0579]
[1739325395944,0.03733085,197.75,197.73,8.85147171]
[1739325396147,0.03733085,197.75,197.73,13.90957171]
[1739325396640,0.03733085,197.75,197.71,8.88779741]
[1739325396845,8.88880256,197.75,197.71,0.0363257]
[1739325397744,5.0584,197.73,197.71,0.0363257]
[1739325398848,8.88880256,197.75,197.71,0.0363257]
[1739325399048,5.0584,197.72,197.71,0.0363257]
[1739325401147,8.85147171,197.73,197.65,8.85147171]
[1739325401347,5.0593,197.69,197.65,8.85147171]
[1739325401739,5.0594,197.68,197.65,8.85147171]
[1739325402349,5.09606818,197.68,197.65,8.88373235]
[1739325407947,5.0597,197.67,197.65,8.88373235]
[1739325408657,5.0599,197.66,197.65,0.03226064]
[1739325410262,5.0612,197.61,197.57,8.85147171]
[1739325410651,13.91237171,197.63,197.57,8.85147171]
[1739325410855,8.85147171,197.63,197.58,5.0619]
[1739325411057,8.85147171,197.63,197.57,8.85147171]
[1739325411254,0.03422859,197.62,197.58,0.03685546]
[1739325412453,5.09542859,197.62,197.58,0.03685546]
[1739325413263,5.09542859,197.62,197.58,5.09875546]
[1739325415156,5.0612,197.61,197.58,0.03685546]
[1739325415564,0.03422859,197.62,197.58,0.03685546]
[1739325416660,5.09542859,197.62,197.58,5.09875546]
[1739325416874,5.09542859,197.62,197.58,0.03685546]
[1739325416875,0.03422859,197.62,197.58,0.03685546]
[1739325417165,5.0615,197.6,197.58,0.03685546]
[1739325417959,0.03422859,197.62,197.58,0.03685546]
[1739325418764,5.0613,197.61,197.58,0.03685546]
[1739325419865,5.0616,197.6,197.58,0.03685546]
[1739325420072,8.85147171,197.61,197.58,0.03685546]
[1739325420572,5.0617,197.59,197.58,0.03685546]
[1739325420970,13.91317171,197.59,197.58,0.03685546]
[1739325422872,5.0614,197.61,197.58,0.03685546]
[1739325424082,0.03422859,197.62,197.58,0.03685546]
[1739325424277,0.03422859,197.62,197.59,8.85147171]
[1739325424471,0.03422859,197.62,197.61,8.85147171]
[1739325425676,0.03422859,197.62,197.61,13.91267171]
[1739325426980,0.03422859,197.62,197.61,8.85147171]
[1739325428086,0.03422859,197.62,197.61,13.91267171]
[1739325428883,8.85147171,197.7,197.63,5.0606]
[1739325429083,8.85147171,197.7,197.64,8.85147171]
[1739325429685,5.0597,197.67,197.64,8.85147171]
[1739325429986,5.09541673,197.67,197.64,8.88346758]
[1739325431287,5.0602,197.65,197.64,0.03199587]
[1739325432886,0.03571673,197.67,197.64,0.03199587]
[1739325433488,5.0602,197.65,197.64,0.03199587]
[1739325435095,5.09561673,197.67,197.64,0.03199587]
[1739325436008,0.03571673,197.67,197.64,0.03199587]
[1739325436200,5.0601,197.66,197.64,0.03199587]
[1739325436501,0.03571673,197.67,197.64,0.03199587]
[1739325436700,5.0602,197.65,197.64,0.03199587]
[1739325452102,8.85147171,197.66,197.54,8.85147171]
[1739325452305,8.85147171,197.6,197.54,8.85147171]
[1739325453110,0.03687637,197.59,197.55,0.03264615]
[1739325453805,8.85147171,197.58,197.55,0.03264615]
[1739325454808,5.0625,197.56,197.55,0.03264615]
[1739325455602,13.91397171,197.56,197.55,0.03264615]
[1739325465317,5.0625,197.56,197.55,0.03264615]
[1739325471018,13.91397171,197.56,197.55,0.03264615]
[1739325479126,0.03687637,197.59,197.48,8.85147171]
[1739325479127,5.0639,197.51,197.48,8.85147171]
[1739325479825,5.0636,197.52,197.48,8.85147171]
[1739325480025,0.03811113,197.51,197.48,8.88800701]
[1739325480722,5.10201113,197.51,197.48,8.88800701]
[1739325481926,0.03811113,197.51,197.48,8.88800701]
[1739325487028,0.03811113,197.51,197.5,8.85147171]
[1739325487728,0.03811113,197.51,197.48,0.0365353]
[1739325488827,5.0643,197.49,197.48,0.0365353]
[1739325507948,5.0661,197.42,197.41,53.75647536]
[1739325508138,5.0661,197.42,197.38,8.85147171]
[1739325509246,5.1028678,197.42,197.38,8.88453554]
[1739325510949,0.0367678,197.42,197.38,8.88453554]
[1739325511346,0.0367678,197.42,197.4,8.85147171]
[1739325512749,5.1028678,197.42,197.4,8.85147171]
[1739325513847,5.1028678,197.42,197.38,8.88453554]
[1739325514652,5.0667,197.4,197.38,0.03306383]
[1739325515150,5.0668,197.39,197.38,0.03306383]
[1739325525963,13.91827171,197.39,197.38,0.03306383]
[1739325526960,5.0668,197.39,197.38,0.03306383]
[1739325528463,8.85147171,197.41,197.38,0.03306383]
[1739325528665,0.0367678,197.42,197.38,0.03306383]
[1739325528860,8.85147171,197.41,197.38,0.03306383]
[1739325529961,5.0666,197.4,197.38,0.03306383]
[1739325530162,8.85147171,197.41,197.38,0.03306383]
[1739325530362,0.0367678,197.42,197.38,0.03306383]
[1739325531459,0.0367678,197.42,197.38,8.88453554]
[1739325531754,0.0367678,197.42,197.4,8.85147171]
[1739325532161,8.85147171,197.49,197.43,8.85147171]
[1739325532556,8.85147171,197.51,197.43,8.85147171]
[1739325533257,0.03403089,197.49,197.45,0.03398578]
[1739325534462,5.09853089,197.49,197.45,0.03398578]
[1739325534762,0.03403089,197.49,197.45,0.03398578]
[1739325535154,5.0646,197.48,197.45,0.03398578]
[1739325535459,8.8855026,197.49,197.45,0.03398578]
[1739325535857,5.0648,197.47,197.45,0.03398578]
[1739325539265,13.9500026,197.49,197.45,0.03398578]
[1739325539469,8.8855026,197.49,197.45,0.03398578]
[1739325540268,5.065,197.47,197.45,0.03398578]
[1739325541969,5.065,197.46,197.45,0.03398578]
[1739325543972,8.8855026,197.49,197.45,0.03398578]
[1739325544875,5.0646,197.48,197.45,0.03398578]
[1739325545174,8.8855026,197.49,197.45,0.03398578]
[1739325546076,5.0648,197.47,197.45,0.03398578]
[1739325546275,8.8855026,197.49,197.45,0.03398578]
[1739325546476,8.85147171,197.47,197.45,0.03398578]
[1739325546676,5.065,197.46,197.45,0.03398578]
[1739325546970,8.85147171,197.47,197.37,8.85147171]
[1739325547177,5.0666,197.4,197.35,8.85147171]
[1739325547876,8.85147171,197.42,197.35,8.85147171]
[1739325547877,5.067,197.39,197.35,8.85147171]
[1739325548076,5.10374406,197.39,197.36,0.0350967]
[1739325549271,0.03674406,197.39,197.36,0.0350967]
[1739325550077,0.03674406,197.39,197.37,8.85147171]
[1739325555679,5.10364406,197.39,197.36,0.0350967]
[1739325555879,0.03674406,197.39,197.36,0.0350967]
[1739325556381,5.0671,197.38,197.36,0.0350967]
[1739325557083,5.0674,197.37,197.36,0.0350967]
[1739325560084,0.03674406,197.39,197.36,0.0350967]
[1739325561881,5.0671,197.38,197.36,0.0350967]
[1739325564492,0.03674406,197.39,197.37,8.85147171]
[1739325570898,0.03674406,197.39,197.36,0.0350967]
[1739325571097,5.0671,197.38,197.36,0.0350967]
[1739325571704,0.03674406,197.39,197.36,0.0350967]
[1739325572200,0.03674406,197.39,197.37,8.85147171]
[1739325574103,5.10364406,197.39,197.36,0.0350967]
[1739325575405,0.03674406,197.39,197.36,0.0350967]
[1739325575605,5.0674,197.37,197.36,0.0350967]
[1739325577203,5.0672,197.38,197.36,0.0350967]
[1739325577608,0.03674406,197.39,197.36,0.0350967]
[1739325578704,5.10374406,197.39,197.36,0.0350967]
[1739325585819,5.0672,197.38,197.36,0.0350967]
[1739325586517,5.0674,197.37,197.36,0.0350967]
[1739325587016,5.0672,197.38,197.36,0.0350967]
[1739325588218,0.03674406,197.39,197.36,0.0350967]
[1739325593424,5.10354406,197.39,197.36,0.0350967]
[1739325595122,0.03674406,197.39,197.36,0.0350967]
[1739325599722,5.10384406,197.39,197.36,0.0350967]
[1739325600724,5.0674,197.37,197.36,0.0350967]
[1739325601322,5.0671,197.38,197.36,0.0350967]
[1739325602025,0.03674406,197.39,197.36,0.0350967]
[1739325602222,5.0671,197.38,197.36,0.0350967]
[1739325602523,0.03674406,197.39,197.36,0.0350967]
[1739325604126,5.0671,197.38,197.36,0.0350967]
[1739325604525,0.03674406,197.39,197.36,0.0350967]
[1739325604723,5.0673,197.38,197.36,0.0350967]
[1739325605724,0.03674406,197.39,197.36,0.0350967]
[1739325605919,0.03674406,197.39,197.37,8.85147171]
[1739325607625,0.03674406,197.39,197.36,0.0350967]
[1739325608022,8.85147171,197.38,197.36,0.0350967]
[1739325609731,5.0674,197.37,197.36,0.0350967]
[1739325610026,8.85147171,197.38,197.36,0.0350967]
[1739325611028,13.91857171,197.38,197.36,0.0350967]
[1739325611519,8.85147171,197.38,197.36,0.0350967]
[1739325612124,5.0674,197.37,197.36,0.0350967]
[1739325613632,5.10364406,197.39,197.36,0.0350967]
[1739325614523,0.03674406,197.39,197.37,8.85147171]
[1739325614723,3.0436,197.47,197.37,8.85147171]
[1739325614932,155.14815396,197.48,197.43,8.85147171]
[1739325615127,160.19988311,197.48,197.43,8.85147171]
[1739325615331,160.19988311,197.48,197.41,8.85147171]
[1739325615631,150.08389366,197.48,197.41,8.85147171]
[1739325615930,5.0656,197.44,197.43,0.03799874]
[1739325616122,13.91707171,197.44,197.43,0.03799874]
[1739325616934,5.0668,197.4,197.35,8.85147171]
[1739325617233,8.85147171,197.38,197.31,8.85147171]
[1739325618132,0.03771788,197.36,197.33,0.03519768]
[1739325618723,5.10531788,197.36,197.33,0.03519768]
[1739325618933,0.03771788,197.36,197.33,0.03519768]
[1739325620737,5.10541788,197.36,197.33,0.03519768]
[1739325621638,0.03771788,197.36,197.33,0.03519768]
[1739325622645,0.03771788,197.36,197.34,5.068]
[1739325622839,0.03771788,197.36,197.35,8.85147171]
[1739325623637,0.03771788,197.36,197.33,0.03519768]
[1739325623638,0.03771788,197.36,197.34,5.0681]
[1739325626340,0.03771788,197.36,197.33,8.88666939]
[1739325628339,0.03771788,197.36,197.33,13.95496939]
[1739325629644,5.10541788,197.36,197.33,8.88666939]
[1739325632342,5.0681,197.34,197.33,0.03519768]
[1739325633351,13.91957171,197.34,197.33,0.03519768]
[1739325633749,5.0694,197.29,197.25,8.85147171]
[1739325634751,5.0694,197.29,197.25,13.92187171]
[1739325634946,0.03585486,197.29,197.25,13.95568678]
[1739325638351,0.03585486,197.29,197.25,8.88528678]
[1739325638649,5.0697,197.28,197.25,8.88528678]
[1739325639242,0.03585486,197.29,197.25,8.88528678]
[1739325639551,5.0702,197.26,197.25,0.03381507]
[1739325639753,0.03585486,197.29,197.25,0.03381507]
[1739325640044,5.0702,197.26,197.25,0.03381507]
[1739325640653,5.07,197.27,197.25,0.03381507]
[1739325640951,0.03585486,197.29,197.25,0.03381507]
[1739325641151,5.0698,197.28,197.25,0.03381507]
[1739325641347,0.03585486,197.29,197.25,0.03381507]
[1739325642147,5.0697,197.28,197.25,0.03381507]
[1739325642345,0.03585486,197.29,197.25,0.03381507]
[1739325642550,5.0697,197.28,197.25,0.03381507]
[1739325643257,0.03585486,197.29,197.25,8.88528678]
[1739325643848,5.10545486,197.29,197.25,13.95568678]
[1739325644247,5.0697,197.28,197.25,8.88528678]
[1739325644852,5.0699,197.27,197.25,0.03381507]
[1739325645748,5.0699,197.28,197.25,0.03381507]
[1739325646057,0.03585486,197.29,197.25,0.03381507]
[1739325646856,0.03585486,197.29,197.25,8.88528678]
[1739325647454,0.03585486,197.29,197.27,8.85147171]
[1739325647756,0.03585486,197.29,197.28,5.0697]
[1739325649862,8.85147171,197.38,197.32,5.0684]
[1739325650058,1.534,197.39,197.32,13.91987171]
[1739325650452,5.0676,197.36,197.32,13.91987171]
[1739325650659,8.85147171,197.38,197.32,8.85147171]
[1739325651058,0.03700267,197.37,197.33,0.03315317]
[1739325651657,5.0681,197.34,197.33,0.03315317]
[1739325652558,0.03700267,197.37,197.33,0.03315317]
[1739325652759,0.03700267,197.37,197.34,8.85147171]
[1739325653160,0.03700267,197.37,197.34,13.91957171]
[1739325654261,0.03700267,197.37,197.34,8.85147171]
[1739325655663,0.03700267,197.37,197.34,13.91947171]
[1739325658066,0.03700267,197.37,197.34,8.85147171]
[1739325658365,0.03700267,197.37,197.33,0.03315317]
[1739325659365,0.03700267,197.37,197.33,5.10145317]
[1739325659864,0.03700267,197.37,197.34,13.91937171]
[1739325660067,0.03700267,197.37,197.34,8.85147171]
[1739325661374,5.10440267,197.37,197.34,8.85147171]
[1739325661574,5.10440267,197.37,197.33,0.03315317]
[1739325662170,0.03700267,197.37,197.36,5.0676]
[1739325662370,0.03700267,197.37,197.36,13.91907171]
[1739325662873,10.35547171,197.48,197.41,5.0663]
[1739325663075,10.35547171,197.48,197.41,13.91777171]
[1739325663271,3.0006,197.49,197.43,8.85147171]
[1739325663477,1.511,197.49,197.43,8.85147171]
[1739325664171,5.0648,197.47,197.44,0.03771734]
[1739325665079,5.0653,197.45,197.44,0.03771734]
[1739325665577,8.85147171,197.46,197.37,8.85147171]
[1739325665772,8.85147171,197.42,197.35,8.85147171]
[1739325666174,5.0673,197.38,197.35,8.85147171]
[1739325666372,8.85147171,197.38,197.31,8.85147171]
[1739325666775,0.03880832,197.36,197.33,0.03526481]
[1739325667478,5.10650832,197.36,197.33,0.03526481]
[1739325667873,0.03880832,197.36,197.33,0.03526481]
[1739325668075,0.03880832,197.36,197.33,5.10366481]
[1739325669279,0.03880832,197.36,197.33,0.03526481]
[1739325671679,5.0681,197.34,197.33,0.03526481]
[1739325676081,5.0695,197.29,197.24,5.0704]
[1739325676379,13.87175647,197.34,197.22,67.67276196]
[1739325676582,5.0699,197.28,197.22,67.67276196]
[1739325677183,5.0699,197.28,197.23,0.03369046]
[1739325677375,0.03703175,197.27,197.23,0.03369046]
[1739325677581,0.03703175,197.27,197.24,5.0704]
[1739325677776,0.03703175,197.27,197.23,0.03369046]
[1739325679582,5.0704,197.26,197.23,0.03369046]
[1739325679881,0.03703175,197.27,197.23,0.03369046]
[1739325680284,5.10713175,197.27,197.23,0.03369046]
[1739325680585,0.03703175,197.27,197.23,0.03369046]
[1739325681382,5.10693175,197.27,197.23,0.03369046]
[1739325681882,0.03703175,197.27,197.23,0.03369046]
[1739325682083,5.0702,197.26,197.23,0.03369046]
[1739325683785,5.0714,197.22,197.17,5.0723]
[1739325683991,13.87175647,197.22,197.11,4.7336]
[1739325684392,5.0725,197.17,197.12,5.0735]
[1739325684588,13.87175647,197.22,197.12,5.0735]
[1739325684788,13.87175647,197.22,197.11,4.7336]
[1739325684989,5.0726,197.17,197.11,9.8076]
[1739325685189,0.03321835,197.19,197.11,4.7336]
[1739325685392,0.03321835,197.19,197.11,1.6033]
[1739325686589,0.03321835,197.19,197.13,13.87175647]
[1739325686989,0.03321835,197.19,197.11,1.6033]
[1739325687797,0.03321835,197.19,197.13,5.0735]
[1739325688098,0.03321835,197.19,197.11,1.6033]
[1739325689897,0.03321835,197.19,197.13,13.87175647]
[1739325690895,0.03321835,197.19,197.16,5.0726]
[1739325691295,0.03321835,197.19,197.13,13.87175647]
[1739325691500,0.03321835,197.19,197.14,5.0733]
[1739325692301,0.03321835,197.19,197.11,1.6033]
[1739325692796,0.03321835,197.19,197.12,5.0738]
[1739325693805,5.0728,197.16,197.1,13.87175647]
[1739325694103,13.87175647,197.22,197.1,13.87175647]
[1739325694304,0.03448322,197.15,197.14,5.0733]
[1739325694505,13.87175647,197.22,197.1,13.87175647]
[1739325694700,0.03368473,197.16,197.1,13.87175647]
[1739325695105,0.03368473,197.16,197.15,5.073]
[1739325695609,8.473e-05,197.16,197.15,5.073]
[1739325698006,1.4719,197.29,197.14,4.52779999]
[1739325698206,1.4719,197.29,197.23,5.0708]
[1739325698403,1.4719,197.29,197.19,13.87175647]
[1739325698602,6.5414,197.29,197.19,13.87175647]
[1739325699302,0.03581411,197.26,197.22,0.03246671]
[1739325700307,0.03581411,197.26,197.22,5.10346671]
[1739325700607,0.03581411,197.26,197.22,0.03246671]
[1739325700809,0.03581411,197.26,197.23,5.0709]
[1739325702101,0.03581411,197.26,197.24,5.0707]
[1739325702503,0.03581411,197.26,197.22,0.03246671]
[1739325702909,0.03581411,197.26,197.25,5.0704]
[1739325710114,3.0808,197.36,197.25,13.87175647]
[1739325710416,3.0808,197.36,197.3,5.0689]
[1739325710610,5.0682,197.34,197.3,5.0689]
[1739325711012,5.0686,197.33,197.28,5.0695]
[1739325711211,3.0808,197.36,197.28,5.0695]
[1739325711514,3.0808,197.36,197.25,13.87175647]
[1739325711515,0.03502157,197.32,197.29,0.03306135]
[1739325713521,5.10392157,197.32,197.29,0.03306135]
[1739325715415,0.03502157,197.32,197.29,5.10246135]
[1739325715721,0.03502157,197.32,197.29,0.03306135]
[1739325716922,0.03502157,197.32,197.3,5.0689]
[1739325717316,0.03502157,197.32,197.31,5.0689]
[1739325720821,0.03502157,197.32,197.29,0.03306135]
[1739325721016,0.03502157,197.32,197.3,5.0691]
[1739325722623,0.03502157,197.32,197.29,5.10246135]
[1739325722824,0.03502157,197.32,197.29,0.03306135]
[1739325723724,5.0691,197.3,197.29,0.03306135]
[1739325723922,0.03502157,197.32,197.29,0.03306135]
[1739325724329,0.03502157,197.32,197.31,5.0689]
[1739325724823,0.03502157,197.32,197.31,18.94065647]
[1739325725627,2.157e-05,197.32,197.31,13.94329481]
[1739325726022,5.0661,197.42,197.37,5.0672]
[1739325726228,5.0661,197.42,197.37,13.94159481]
[1739325727131,0.03364377,197.41,197.38,0.03192223]
[1739325727730,5.10004377,197.41,197.38,0.03192223]
[1739325728529,0.03364377,197.41,197.39,5.0666]
[1739325728925,0.03364377,197.41,197.38,0.03192223]
[1739325730534,0.03364377,197.41,197.38,5.09902223]
[1739325731223,0.03364377,197.41,197.38,0.03192223]
[1739325731731,5.10014377,197.41,197.38,0.03192223]
[1739325732032,0.03364377,197.41,197.38,0.03192223]
[1739325732835,0.03364377,197.41,197.4,5.0666]
[1739325734634,5.0647,197.48,197.43,5.0657]
[1739325734935,5.0651,197.46,197.39,13.86333016]
[1739325735334,13.86333016,197.53,197.39,13.86333016]
[1739325735636,13.86333016,197.5,197.39,13.86333016]
[1739325735837,0.03256345,197.47,197.43,0.03797211]
[1739325736336,5.09746345,197.47,197.43,0.03797211]
[1739325737438,0.03256345,197.47,197.43,0.03797211]
[1739325738439,5.0653,197.45,197.43,0.03797211]
[1739325739038,5.09756345,197.47,197.43,5.10377211]
[1739325739838,5.09756345,197.47,197.43,0.03797211]
[1739325739839,0.03256345,197.47,197.43,0.03797211]
[1739325740241,0.03256345,197.47,197.44,5.0653]
[1739325740840,5.09756345,197.47,197.43,0.03797211]
[1739325741036,0.03256345,197.47,197.43,0.03797211]
[1739325742734,5.09746345,197.47,197.43,5.10357211]
[1739325743038,0.03256345,197.47,197.43,5.10357211]
[1739325743541,0.03256345,197.47,197.43,0.03797211]
[1739325743938,5.09756345,197.47,197.43,0.03797211]
[1739325746441,5.09756345,197.47,197.43,5.10377211]
[1739325747234,0.03256345,197.47,197.43,0.03797211]
[1739325748644,0.03256345,197.47,197.44,5.0655]
[1739325749446,0.03256345,197.47,197.43,0.03797211]
[1739325750946,5.09736345,197.47,197.43,5.10377211]
[1739325752643,0.03256345,197.47,197.45,5.0653]
[1739325753446,0.03256345,197.47,197.44,8.86747206]
[1739325754749,0.03256345,197.47,197.44,13.93307206]
[1739325755249,0.03256345,197.47,197.44,8.86747206]
[1739325755556,5.0652,197.46,197.43,0.03797211]
[1739325755855,0.03256345,197.47,197.43,0.03797211]
[1739325756754,5.09746345,197.47,197.43,5.10357211]
[1739325756956,0.03256345,197.47,197.43,0.03797211]
[1739325757254,8.90003551,197.47,197.43,0.03797211]
[1739325757450,13.96483551,197.47,197.43,0.03797211]
[1739325757650,5.09736345,197.47,197.43,0.03797211]
[1739325757955,0.03256345,197.47,197.46,8.86747206]
[1739325758455,0.03256345,197.47,197.46,13.93247206]
[1739325759856,8.86747206,197.59,197.46,8.86747206]
[1739325760157,8.86747206,197.59,197.52,8.86747206]
[1739325760358,13.92987206,197.57,197.52,8.86747206]
[1739325760552,8.86747206,197.57,197.5,8.86747206]
[1739325760756,8.86747206,197.55,197.48,8.86747206]
[1739325760956,8.90625621,197.55,197.52,0.03764992]
[1739325761760,13.93067206,197.53,197.52,0.03764992]
[1739325762055,8.86747206,197.53,197.42,8.86747206]
[1739325762257,8.86747206,197.48,197.4,8.86747206]
[1739325763158,0.03617067,197.46,197.42,0.03867774]
[1739325764157,5.0658,197.43,197.42,0.03867774]
[1739325764852,0.03617067,197.46,197.42,0.03867774]
[1739325765558,5.0658,197.43,197.42,0.03867774]
[1739325778668,5.0678,197.36,197.3,13.86040161]
[1739325779472,5.0679,197.35,197.32,5.0685]
[1739325779772,0.03228897,197.35,197.32,0.03736988]
[1739325780263,5.0684,197.33,197.32,0.03736988]
[1739325780865,0.03228897,197.35,197.32,0.03736988]
[1739325781673,5.0681,197.34,197.32,0.03736988]
[1739325782775,5.0684,197.33,197.32,0.03736988]
[1739325784573,5.0696,197.29,197.24,5.0704]
[1739325784875,13.86040161,197.35,197.23,1.4833]
[1739325785075,5.0689,197.31,197.23,1.4833]
[1739325785275,13.86040161,197.35,197.23,1.4833]
[1739325785678,4.5693,197.37,197.23,1.4833]
[1739325785679,8.91828619,197.31,197.27,0.03676929]
[1739325786076,0.03488583,197.31,197.27,0.03676929]
[1739325786379,8.91828619,197.31,197.27,0.03676929]
[1739325787274,5.0692,197.3,197.27,0.03676929]
[1739325787471,8.91828619,197.31,197.27,0.03676929]
[1739325790284,13.98738619,197.31,197.27,0.03676929]
[1739325790975,8.91828619,197.31,197.27,0.03676929]
[1739325791788,5.0692,197.3,197.27,0.03676929]
[1739325791978,8.91828619,197.31,197.27,0.03676929]
[1739325792281,5.0692,197.3,197.27,0.03676929]
[1739325793481,8.91828619,197.31,197.27,0.03676929]
[1739325793683,13.98718619,197.31,197.27,5.10666929]
[1739325794683,8.91828619,197.31,197.27,0.03676929]
[1739325795185,5.0692,197.3,197.27,0.03676929]
[1739325795990,8.91828619,197.31,197.27,0.03676929]
[1739325796586,8.91828619,197.31,197.27,5.10666929]
[1739325797279,13.98738619,197.31,197.27,5.10666929]
[1739325797486,8.91828619,197.31,197.27,0.03676929]
[1739325798184,8.88340036,197.29,197.27,0.03676929]
[1739325798579,5.0697,197.28,197.27,0.03676929]
[1739325800688,8.88340036,197.29,197.27,0.03676929]
[1739325800985,13.95290036,197.29,197.27,0.03676929]
[1739325801193,5.0695,197.29,197.27,0.03676929]
[1739325802493,5.0697,197.28,197.27,0.03676929]
[1739325806490,8.88340036,197.29,197.17,1.5945]
[1739325806692,8.88340036,197.21,197.14,8.88340036]
[1739325807201,5.0718,197.2,197.16,5.0726]
[1739325807595,8.88340036,197.21,197.16,5.0726]
[1739325807792,0.03560029,197.2,197.16,5.09286079]
[1739325808402,0.03560029,197.2,197.18,8.88340036]
[1739325809594,13.90247611,197.4,197.18,8.88340036]
[1739325809901,13.90247611,197.4,197.29,8.88340036]
[1739325809902,8.88340036,197.36,197.29,8.88340036]
[1739325810894,0.03301666,197.34,197.32,5.0686]
[1739325811101,0.03301666,197.34,197.31,0.03741764]
[1739325813199,0.03301666,197.34,197.31,5.10631764]
[1739325813602,0.03301666,197.34,197.31,0.03741764]
[1739325815198,5.10131666,197.34,197.31,0.03741764]
[1739325815803,5.0686,197.33,197.31,0.03741764]
[1739325816207,0.03301666,197.34,197.31,0.03741764]
[1739325817305,5.10111666,197.34,197.31,0.03741764]
[1739325817809,5.0684,197.33,197.31,0.03741764]
[1739325818211,0.03301666,197.34,197.31,0.03741764]
[1739325818412,5.0686,197.32,197.31,0.03741764]
[1739325820503,18.9427558,197.32,197.31,0.03741764]